Workbook

Sheet Disclaimer

Sheet Instructions
A1: Power Budget Instructions
A40: Press the Start button to begin using the Power Budget Tool

Sheet Summary
A1: Power Budget | B1: =CONCATENATE(INDEX(Chassis!$I$3:$I$16,'Intel Chassis'!$B3)," / ",INDEX(Serverboard!A$2:A$7,'Serverboard Config'!$B5) ) -> P4XXXXXMHJC / Intel® Server Board S2600CO/COE
A2: Chassis/ Power Supply / Cooling: | C2: =INDEX(Chassis!A$3:A$15,'Intel Chassis'!$B3) -> 1200W Red(2) P4XXXXXMHJC (high current PDB)
A3: Serverboard: | C3: =INDEX(Serverboard!A$2:A$7,'Serverboard Config'!$B5) -> Intel® Server Board S2600CO/COE
A4: System Totals | B4: +3.3V (amps) | C4: +5V (amps) | D4: +12V (amps) | E4: -12V (amps) | F4: 5VSB (amps) | G4: Total System Watts
A5: =CONCATENATE("Processors - Qty ",'Serverboard Config'!C4, ":") -> Processors - Qty 2: | B5: =SUM('Serverboard Config'!D3) -> 0 | C5: =SUM('Serverboard Config'!E3) -> 0 | D5: =SUM('Serverboard Config'!F3) -> 21.92460317 | E5: =SUM('Serverboard Config'!G3) -> 0 | F5: =SUM('Serverboard Config'!H3) -> 0 | G5: =SUM('Serverboard Config'!I3) -> 263.0952381
A6: =CONCATENATE("PCIe Cards - Qty ",('Serverboard Config'!B8>1) + ('Serverboard Config'!B9>1) + ('Serverboard Config'!B10>1) + ('Serverboard Config'!B11>1) +('Serverboard Config'!B12>1),":") -> PCIe Cards - Qty 3: | B6: =SUM('Serverboard Config'!D7:D13) -> 6.86 | C6: =SUM('Serverboard Config'!E7:E13) -> 0 | D6: =SUM('Serverboard Config'!F7:F13) -> 36.45 | E6: =SUM('Serverboard Config'!G7:G13) -> 0 | F6: =SUM('Serverboard Config'!H7:H13) -> 0.3 | G6: =SUM('Serverboard Config'!I7:I13) -> 461.538
A7: =CONCATENATE("Hard Drives - Qty ",'Intel Chassis'!C4,":") -> Hard Drives - Qty 8: | B7: =SUM('Intel Chassis'!D4:D4) -> 0 | C7: =SUM('Intel Chassis'!E4:E4) -> 0 | D7: =SUM('Intel Chassis'!F4:F4) -> 6.655 | E7: =SUM('Intel Chassis'!G4:G4) -> 0 | F7: 0 | G7: =SUM('Intel Chassis'!I4:I4) -> 79.86
A8: Serverboard & Memory: | B8: =SUM('Serverboard Config'!D5:D6) -> 1.368 | C8: =SUM('Serverboard Config'!E5:E6) -> 2 | D8: =SUM('Serverboard Config'!F5:F6) -> 15.80848 | E8: =SUM('Serverboard Config'!G5:G6) -> 0 | F8: =SUM('Serverboard Config'!H5:H6) -> 0.415 | G8: =SUM('Serverboard Config'!I5:I6) -> 206.29116
A9: Chassis & Peripherals: | B9: =SUM('Intel Chassis'!D3:D10)-SUM('Intel Chassis'!D4:D4) -> 0 | C9: =SUM('Intel Chassis'!E3:E10)-SUM('Intel Chassis'!E4:E4) -> 0.9 | D9: =SUM('Intel Chassis'!F3:F7)-SUM('Intel Chassis'!F4:F4) -> 5.202588235 | E9: =SUM('Intel Chassis'!G3:G10)-SUM('Intel Chassis'!G4:G4) -> 0 | F9: =SUM('Intel Chassis'!H3:H10)-SUM('Intel Chassis'!H4:H4) -> 0 | G9: ='Intel Chassis'!I12-'Intel Chassis'!I4 -> 75.33105882
A10: System Totals: | B10: =SUM(B5:B9) -> 8.228 | C10: 2.9 | D10: 86.04067141 | E10: 0 | F10: 0.715 | G10: 1086.115457
A11: Power Supply Limits: | B11: =INDEX(Chassis!B$3:B$16,'Intel Chassis'!$B3) -> 25 | C11: =INDEX(Chassis!C$3:C$16,'Intel Chassis'!$B3) -> 25 | D11: =INDEX(Chassis!D$3:D$16,'Intel Chassis'!$B3) -> 100 | E11: =INDEX(Chassis!E$3:E$16,'Intel Chassis'!$B3) -> 0.5 | F11: =INDEX(Chassis!F$3:F$16,'Intel Chassis'!$B3) -> 4.28 | G11: =INDEX(Chassis!G$3:G$16,'Intel Chassis'!$B3) -> 1200
A12: Margins to Limit: | B12: =B11-B10 -> 16.772 | C12: 22.1 | D12: 13.95932859 | E12: 0.5 | F12: 3.565 | G12: 113.8845431 | H12: =IF(OR(OR(OR(B12<0,C12<0),OR(D12<0,E12<0)),G12<0),"<-- Limits Exceeded!","") -> 
A13: =IF((G11=550), "550W PSU +12V rail will have config limitation, see below config table for details.", "Please note +12V rail OCP") -> Please note +12V rail OCP
A14: Negative margins show configuration exceeds a specified limit.
F17: 110V | G17: 220V
E18: Estimated Worst Case Inlet Power: | F18: =PowerTotal/ (INDEX(Chassis!$J$3:$J$16,'Intel Chassis'!$B3)+0.001) -> 1355.949384 | G18: =PowerTotal / (INDEX(Chassis!$K$3:$K$16,'Intel Chassis'!$B3)+0.001) -> 1355.949384 | H18: (Watts)
E19: Estimated Worst Case Inlet Current: | F19: =F18/110 -> 12.32681259 | G19: =G18/220 -> 6.163406293 | H19: (Amps)
E20: Estimated Worst Case Thermal Dissipation: | F20: =F18*3.41 -> 4623.787401 | G20: =G18*3.41 -> 4623.787401 | H20: (BTU/Hr)
A21: =Revisions!A1 -> Version 1.0 - 6/10/2011

Sheet Intel Chassis
A1: Power Budget | B1: =CONCATENATE(INDEX(Chassis!$I$3:$I$16,B3), " System Configuration") -> P4XXXXXMHJC System Configuration
A2: System Feature | B2: Description | C2: Qty | D2: +3.3V (amps) | E2: +5V (amps) | F2: +12V(amps) | G2: -12V (amps) | H2: 5V stby (amps) | I2: Power (watts)
A3: Chassis: | B3: 2 | F3: =INDEX(Chassis!$H$4:$H$21,B3) -> 5 | I3: =D3*3.3+E3*5+(F3+G3)*12+H3*5 -> 60 | J3: Includes System Fans
A4: Hotswap Hard Drives: | B4: 3 | C4: 8 | F4: =(INDEX(HardDrive!$D$2:$D$13,B4))*C4+(INDEX(HardDrive!$C$2:$C$13,B4) *C4)*5/0.8/12 -> 6.655 | I4: 79.86
A5: Midplane / HSBP (Backplane) | B5: 3 | C5: 1 | F5: =INDEX(HSBP!D2:D9,$B5) *$C5 -> 0.2025882353 | I5: 2.431058824
A6: Fixed Hard Drives: | B6: 5 | C6: 0 | E6: =INDEX(HardDrive!$C$2:$C$13,B6) *C6 -> 0 | F6: =(INDEX(HardDrive!$D$2:$D$13,B6))*C6 -> 0 | I6: 0
A7: USB: | B7: USB Devices (100mA/device) | C7: 5 | E7: =0.1*C7 -> 0.5 | I7: 2.5
A8: External Bay 1: | B8: 2 | C8: 1 | D8: =INDEX(Peripherals!B$3:B$8,$B8) *$C8 -> 0 | E8: =INDEX(Peripherals!C$3:C$8,$B8) *$C8 -> 0.4 | F8: =INDEX(Peripherals!D$3:D$8,$B8) *$C8 -> 0.7 | H8: =INDEX(Peripherals!E$3:E$8,$B8) *$C8 -> 0 | I8: 10.4
A9: External Bay 2: | B9: 1 | C9: 0 | D9: =INDEX(Peripherals!B$3:B$8,$B9) *$C9 -> 0 | E9: =INDEX(Peripherals!C$3:C$8,$B9) *$C9 -> 0 | F9: =INDEX(Peripherals!D$3:D$8,$B9) *$C9 -> 0 | H9: =INDEX(Peripherals!E$3:E$8,$B9) *$C9 -> 0 | I9: 0
A10: External Bay 3: | B10: 1 | C10: 0 | D10: =INDEX(Peripherals!B$3:B$8,$B10) *$C10 -> 0 | E10: =INDEX(Peripherals!C$3:C$8,$B10) *$C10 -> 0 | F10: =INDEX(Peripherals!D$3:D$8,$B10) *$C10 -> 0 | H10: =INDEX(Peripherals!E$3:E$8,$B10) *$C10 -> 0 | I10: 0
B12: Subtotal System (A): | D12: =SUM(D3:D10) -> 0 | E12: 0.9 | F12: 12.55758824 | G12: 0 | H12: 0 | I12: 155.1910588
B13: Total System usage (A): | D13: =Summary!B10 -> 8.228 | E13: =Summary!C10 -> 2.9 | F13: =Summary!D10 -> 86.04067141 | G13: =Summary!E10 -> 0 | H13: =Summary!F10 -> 0.715 | I13: =Summary!G10 -> 1086.115457
B14: Power Supply Limits (A): | D14: =Summary!B11 -> 25 | E14: =Summary!C11 -> 25 | F14: =Summary!D11 -> 100 | G14: =Summary!E11 -> 0.5 | H14: =Summary!F11 -> 4.28 | I14: =Summary!G11 -> 1200
B15: Margins compared to Limits: | D15: =Summary!B12 -> 16.772 | E15: =Summary!C12 -> 22.1 | F15: =Summary!D12 -> 13.95932859 | G15: =Summary!E12 -> 0.5 | H15: =Summary!F12 -> 3.565 | I15: =Summary!G12 -> 113.8845431 | J15: =IF(OR(OR(L100<0,E15<0),OR(F15<0,I15<0)),"<-- Limits Exceeded!","<--System Margins") -> <--System Margins
A16: System Margins so far: | D16: 3.3V | E16: 5V | F16: 12V | G16: 12V | H16: 12V | I16: W

Sheet Serverboard Config
A1: Power Budget | B1: =CONCATENATE(INDEX(Serverboard!A$2:A$7,$B5)," Serverboard Configuration") -> Intel® Server Board S2600CO/COE Serverboard Configuration | K1: VRM Efficiency
A2: Serverboard Feature | B2: Description | D2: +3.3V (amps) | E2: +5V (amps) | F2: +12V(amps) | G2: -12V (amps) | H2: 5V stby (amps) | I2: Power (watts) | K2: 0.84
A3: Processors: | B3: 4 | F3: =IF(C4=1,INDEX(Processors!B$2:B$24,$B3)/12/VRMefficiency,C4*INDEX(Processors!B$2:B$24,$B3)*0.85/12/VRMefficiency) -> 21.92460317 | I3: =F3*12+E3*5 -> 263.0952381 | J3: *This line includes correction factors.
B4: Quantity: | C4: 2
A5: Serverboard: | B5: 2 | D5: =INDEX(Serverboard!B$2:B$7,$B5) -> 1.368 | E5: =INDEX(Serverboard!C$2:C$7,$B5) -> 2 | F5: =INDEX(Serverboard!D$2:D$7,$B5) -> 1.6 | G5: =INDEX(Serverboard!E$2:E$7,$B5) -> 0 | H5: =INDEX(Serverboard!F$2:F$7,$B5) -> 0.415 | I5: =INDEX(Serverboard!G$2:G$7,$B5) -> 35.7894
A6: Memory: | B6: 7 | C6: 9 | F6: =INDEX(Memory!D$2:D$13,$B6)*INDEX(Memory!A$26:A$38,$C6)*0.9*0.78 -> 14.20848 | I6: =D6*3.3+E6*5+F6*12+G6*12+H6*5 -> 170.50176 | J6: *This line includes correction factors (utilization & VR eff).
A8: PCI Slot 1 | B8: 5 | D8: =INDEX(PCI!B$2:B$14,$B8) -> 3 | E8: =INDEX(PCI!C$2:C$14,$B8) -> 0 | F8: =INDEX(PCI!D$2:D$14,$B8) -> 17.95 | G8: =INDEX(PCI!E$2:E$14,$B8) -> 0 | H8: =INDEX(PCI!F$2:F$14,$B8) -> 0 | I8: =D8*3.3+E8*5+F8*12+G8*12+H8*5 -> 225.3
A9: PCI Slot 2 | B9: 1 | D9: =INDEX(PCI!B$2:B$14,$B9) -> 0 | E9: =INDEX(PCI!C$2:C$14,$B9) -> 0 | F9: =INDEX(PCI!D$2:D$14,$B9) -> 0 | G9: =INDEX(PCI!E$2:E$14,$B9) -> 0 | H9: =INDEX(PCI!F$2:F$14,$B9) -> 0 | I9: 0
A10: PCI Slot 3 | B10: 5 | D10: =INDEX(PCI!B$2:B$14,$B10) -> 3 | E10: =INDEX(PCI!C$2:C$14,$B10) -> 0 | F10: =INDEX(PCI!D$2:D$14,$B10) -> 17.95 | G10: =INDEX(PCI!E$2:E$14,$B10) -> 0 | H10: =INDEX(PCI!F$2:F$14,$B10) -> 0 | I10: 225.3
A11: PCI Slot 4 | B11: 1 | D11: =INDEX(PCI!B$2:B$14,$B11) -> 0 | E11: =INDEX(PCI!C$2:C$14,$B11) -> 0 | F11: =INDEX(PCI!D$2:D$14,$B11) -> 0 | G11: =INDEX(PCI!E$2:E$14,$B11) -> 0 | H11: =INDEX(PCI!F$2:F$14,$B11) -> 0 | I11: 0
A12: PCI Slot 5 | B12: 9 | D12: =INDEX(PCI!B$2:B$14,$B12) -> 0.86 | E12: =INDEX(PCI!C$2:C$14,$B12) -> 0 | F12: =INDEX(PCI!D$2:D$14,$B12) -> 0.55 | G12: =INDEX(PCI!E$2:E$14,$B12) -> 0 | H12: =INDEX(PCI!F$2:F$14,$B12) -> 0.3 | I12: 10.938
A13: PCI Slot 6 | B13: 1 | D13: =INDEX(PCI!B$2:B$14,$B13) -> 0 | E13: =INDEX(PCI!C$2:C$14,$B13) -> 0 | F13: =INDEX(PCI!D$2:D$14,$B13) -> 0 | G13: =INDEX(PCI!E$2:E$14,$B13) -> 0 | H13: =INDEX(PCI!F$2:F$14,$B13) -> 0 | I13: 0
B14: SubTotals (A): | D14: =SUM(D3:D13) -> 8.228 | E14: =SUM(E3:E13) -> 2 | F14: =SUM(F3:F13) -> 74.18308317 | G14: =SUM(G3:G13) -> 0 | H14: =SUM(H3:H13) -> 0.715
B15: SubTotal Serverboard Power (W): | D15: =(D14)*3.3 -> 27.1524 | E15: =(E14)*5 -> 10 | F15: =(F14)*12 -> 890.1969981 | G15: =(G14)*12 -> 0 | H15: =(H14)*5 -> 3.575 | I15: =SUM(D15:H15) -> 930.9243981
B16: Total System usage (A): | D16: =Summary!B10 -> 8.228 | E16: =Summary!C10 -> 2.9 | F16: =Summary!D10 -> 86.04067141 | G16: =Summary!E10 -> 0 | H16: =Summary!F10 -> 0.715 | I16: =Summary!G10 -> 1086.115457
B17: Power Supply Limits (A): | D17: =Summary!B11 -> 25 | E17: =Summary!C11 -> 25 | F17: =Summary!D11 -> 100 | G17: =Summary!E11 -> 0.5 | H17: =Summary!F11 -> 4.28 | I17: =Summary!G11 -> 1200
C18: Margin compared to Limits: | D18: =Summary!B12 -> 16.772 | E18: =Summary!C12 -> 22.1 | F18: =Summary!D12 -> 13.95932859 | G18: =Summary!E12 -> 0.5 | H18: =Summary!F12 -> 3.565 | I18: =Summary!G12 -> 113.8845431 | J18: =IF(OR(OR(OR(D18<0,E18<0),OR(F18<0,G18<0)),A18<0),"<-- Limits Exceeded!","<--System Margins") -> <--System Margins

Sheet Serverboard
A1: Serverboard | B1: 3.3 | C1: 5 | D1: 12V | E1: -12 | F1: 5VSB | G1: W
A2: (Select Serverboard) | G2: =B2*3.3+C2*5+D2*12+E2*12 + F2*5 -> 0
A3: Intel® Server Board S2600CO/COE | B3: 1.368 | C3: 2 | D3: 1.6 | E3: 0 | F3: 0.415 | G3: 35.7894
G4: 0 | H4: <-- Define Custom Numbers Here
G5: 0 | H5: <-- Define Custom Numbers Here
A6: User Definable | G6: 0 | H6: <-- Define Custom Numbers Here
A7: User Definable | G7: 0 | H7: <-- Define Custom Numbers Here

Sheet Chassis
A1: Chassis | B1: Power supply limits | H1: Fans | I1: Product Name | J1: PS Efficiency | K1: PS Efficiency
A2: Selection | B2: 3V | C2: 5V | D2: 12V | E2: -12V | F2: 5VSB | G2: Watts | J2: 110V | K2: 220V
A3: (Select a Chassis) | I3: (Select Chassis)
A4: 1200W Red(2) P4XXXXXMHJC (high current PDB) | B4: 25 | C4: 25 | D4: =1200/12 -> 100 | E4: 0.5 | F4: 4.28 | G4: 1200 | H4: 5 | I4: P4XXXXXMHJC | J4: 0.8 | K4: 0.8
A5: 750W Red(2) P4XXXXXMHGC (high current PDB) | B5: 25 | C5: 25 | D5: =750/12 -> 62.5 | E5: 0.5 | F5: 4.28 | G5: 750 | H5: 5 | I5: P4XXXXXMHGC | J5: 0.8 | K5: 0.8
A6: 750W Red(2) P4XXXXXMHGR (high current PDB) | B6: 25 | C6: 25 | D6: =750/12 -> 62.5 | E6: 0.5 | F6: 4.28 | G6: 750 | H6: 5 | I6: P4XXXXXMHGR | J6: 0.8 | K6: 0.8
A7: 750W Red(2) P4XXXXXMFGR (high current PDB) | B7: 25 | C7: 25 | D7: =750/12 -> 62.5 | E7: 0.5 | F7: 4.28 | G7: 750 | H7: 5 | I7: P4XXXXXMFGR | J7: 0.8 | K7: 0.8
A8: 750W (1) P4XXXXXMHGN (high current PDB) | B8: 25 | C8: 25 | D8: =750/12 -> 62.5 | E8: 0.5 | F8: 4.28 | G8: 750 | H8: 5 | I8: P4XXXXXMHGN | J8: 0.8 | K8: 0.8
A9: 750W (1) P4XXXXXMFGN (high current PDB) | B9: 25 | C9: 25 | D9: =750/12 -> 62.5 | E9: 0.5 | F9: 4.28 | G9: 750 | H9: 5 | I9: P4XXXXXMFGN | J9: 0.8 | K9: 0.8
A10: 460W Red(2) P4XXXXXMFDR (low current PDB) | B10: 25 | C10: 25 | D10: =460/12 -> 38.33333333 | E10: 0.5 | F10: 4.28 | G10: 460 | H10: 5 | I10: P4XXXXXMFDR | J10: 0.78 | K10: 0.78
A11: 460W Red(2) P4XXXXXMHDR (low current PDB) | B11: 25 | C11: 25 | D11: =460/12 -> 38.33333333 | E11: 0.5 | F11: 4.28 | G11: 460 | H11: 5 | I11: P4XXXXXMHDR | J11: 0.78 | K11: 0.78
A12: 460W (1) P4XXXXXMFDN (low current PDB) | B12: 25 | C12: 25 | D12: =460/12 -> 38.33333333 | E12: 0.5 | F12: 4.28 | G12: 460 | H12: 5 | I12: P4XXXXXMFDN | J12: 0.78 | K12: 0.78
A13: 460W (1) P4XXXXXMHDN (low current PDB) | B13: 25 | C13: 25 | D13: =460/12 -> 38.33333333 | E13: 0.5 | F13: 4.28 | G13: 460 | H13: 5 | I13: P4XXXXXMHDN | J13: 0.78 | K13: 0.78
A14: 550W Fixed P4XXXXXMFEN | B14: 18 | C14: 15 | D14: 66 | E14: 0.5 | F14: 3 | G14: 550 | H14: 5 | I14: P4XXXXXMFEN | J14: 0.88 | K14: 0.88
A15: 550W Fixed P4XXXXXMHEN | B15: 18 | C15: 15 | D15: 66 | E15: 0.5 | F15: 3 | G15: 550 | H15: 5 | I15: P4XXXXXMHEN | J15: 0.88 | K15: 0.88
L16: <-- Define Custom Numbers Here
L17: <-- Define Custom Numbers Here
L18: <-- Define Custom Numbers Here
L19: <-- Define Custom Numbers Here

Sheet Processors
A1: Processor Types | B1: TDP (W) | C1: Source | E1: VRM#1 | F1: VRM#2
A2: (Select a Processor) | E2: 5V VRM | F2: 12V VRM
A3: E5-2687W (8C, C0, 150W, 3.1Ghz) | B3: 150
A4: E5-2690 (8C, C0, 135W, 2.9Ghz) | B4: 135
A5: E5-2680 (8C, C0, 130W, 2.7Ghz) | B5: 130 | E5: None
A6: E5-2670 (8C, C0, 115W, 2.6Ghz) | B6: 115
A7: E5-2667 (6C, C0, 130W, 2.9Ghz) | B7: 130
A8: E5-2665 (8C, C0, 115W, 2.4Ghz) | B8: 115
A9: E5-2660 (8C, C0, 95W, 2.2Ghz) | B9: 95
A10: E5-2640 (6C, C0, 95W, 2.5Ghz) | B10: 95
A11: E5-2650L (8C, C0, 70W, 1.8Ghz) | B11: 70
A12: E5-2630 (6C, C0, 95W, 2.3Ghz) | B12: 95
A13: E5-2630L (6C, C0, 60W, 2.0Ghz) | B13: 60
A14: E5-2620 (6C, C0, 95W, 2.0Ghz) | B14: 95
A15: User Definable | D15: <-- Define Custom Numbers Here
A16: User Definable | D16: <-- Define Custom Numbers Here
A17: User Definable | D17: <-- Define Custom Numbers Here
A18: User Definable | D18: <-- Define Custom Numbers Here
A19: User Definable | D19: <-- Define Custom Numbers Here
A20: User Definable | D20: <-- Define Custom Numbers Here
A21: User Definable | D21: <-- Define Custom Numbers Here
A22: User Definable | D22: <-- Define Custom Numbers Here
A23: User Definable | D23: <-- Define Custom Numbers Here
D24: <-- Define Custom Numbers Here
A27: Processor Quantities (used for tool operation)
A28: 1 | B28: 1
A29: 2 | B29: 2

Sheet Memory
A1: Memory | B1: +3.3V | C1: +5V | D1: +12V | E1: -12V | F1: Watts
A2: (Select Memory) | F2: =B2*3.3+C2*5+D2*12 -> 0
A3: DDR3 UDIMMs (4Gb,DR,x8,1600) | D3: 0.425 | F3: 5.1
A4: DDR3 UDIMMs (4Gb,DR,x4,1600) | D4: 0.425 | F4: =B4*3.3+C4*5+D4*12 -> 5.1
A5: DDR3 RDIMMs (2Gb,QR,x4,800) | D5: 1.07 | F5: =B5*3.3+C5*5+D5*12 -> 12.84
A6: DDR3 RDIMMs (2Gb,QR,x4,1067) | D6: 0.895 | F6: =B6*3.3+C6*5+D6*12 -> 10.74
A7: DDR3 LR-DIMMs (4Gb,QR,x4,1333) | D7: 1.045 | F7: =B7*3.3+C7*5+D7*12 -> 12.54
A8: DDR3 LR-DIMMs (4Gb,QR,x4,1067) | D8: 1.265 | F8: =B8*3.3+C8*5+D8*12 -> 15.18
A9: DDR3 LR-DIMMs (4Gb,QR,x4,1600) | D9: =14.3/12 -> 1.191666667 | F9: 14.3 | G9: <-- Define Custom Numbers Here
A10: User Definable | F10: 0 | G10: <-- Define Custom Numbers Here
A11: User Definable | F11: 0 | G11: <-- Define Custom Numbers Here
A12: User Definable | F12: 0 | G12: <-- Define Custom Numbers Here
A13: User Definable | F13: 0 | G13: <-- Define Custom Numbers Here
A17: Note:
A25: Memory Quantities (used for tool operation)
A26: 0
A27: 1
A28: 2
A29: 4
A30: 6
A31: 8
A32: 10
A33: 12
A34: 16

Sheet PCI
A1: PCIe Add in Cards | B1: +3.3V (A) | C1: +5V (A) | D1: +12V3 (A) | E1: -12V (A) | F1: 5vsb (A) | G1: W
A2: Slot Empty | B2: 0 | C2: 0 | D2: 0 | E2: 0 | F2: 0 | G2: =E2*(-12)+D2*12+C2*5+B2*3.3 -> 0
A3: PCIe (3.3V / 12V) Typical 10W | B3: 2 | D3: 0.25 | G3: =F3*5+E3*(12)+D3*12+C3*5+B3*3.3 -> 9.6
A4: PCIe (3.3V / 12V) High 15W | B4: 2 | D4: 0.65 | G4: 14.4
A5: PCIe GPGPU 300W | B5: 3 | D5: 24.18 | G5: 300.06
A6: PCIe GPGPU 225W | B6: 3 | D6: 17.95 | G6: 225.3
A7: PCIe GPU 150W | B7: 3 | D7: 11.68 | G7: 150.06
A8: General GPU 75W | B8: 3 | D8: 5.43 | G8: 75.06
A9: Intel RAID controller RMS25XXXXX | B9: 0.86 | D9: 0.55 | F9: 0.3 | G9: =F9*5+E9*(12)+D9*12+C9*5+B9*3.3 -> 10.938 | H9: <-- Define Custom Card Here
A10: Intel RAID controller RMT25XXXXX | B10: 0.86 | D10: 0.55 | F10: 0.3 | G10: 10.938 | H10: <-- Define Custom Card Here
A11: Intel 24-port Expander RES2SV240 | D11: 0.97 | G11: =F11*5+E11*(12)+D11*12+C11*5+B11*3.3 -> 11.64 | H11: <-- Define Custom Card Here
A12: PCI User Definable | G12: 0 | H12: <-- Define Custom Card Here
A13: PCI User Definable | G13: =F13*5+E13*(12)+D13*12+C13*5+B13*3.3 -> 0 | H13: <-- Define Custom Card Here
A14: PCI User Definable | G14: 0 | H14: <-- Define Custom Card Here

Sheet HSBP
A1: Backplane / Midplane | B1: +3.3V (A) | C1: +5V (A) | D1: +12V3 (A) | E1: -12V (A) | F1: 5vsb (A) | G1: W
A2: Select Backplane or Midplane | B2: 0 | C2: 0 | D2: 0 | E2: 0 | F2: 0 | G2: =E2*(-12)+D2*12+C2*5+B2*3.3 -> 0
A3: 4U 8x 3.5" HSBP | D3: =F32 -> 0.2025882353 | G3: =F3*5+E3*(12)+D3*12+C3*5+B3*3.3 -> 2.431058824
A4: 4U 8x 2.5" HSBP | D4: =F48 -> 0.2025882353 | G4: 2.431058824
A5: 4U 4x 3.5" HSBP | D5: =F63 -> 0.2025882353 | G5: 2.431058824
A6: User Definable | G6: 0 | H6: <-- Define Custom Card Here
A7: User Definable | G7: 0 | H7: <-- Define Custom Card Here
A8: User Definable | G8: 0 | H8: <-- Define Custom Card Here
A9: User Definable | G9: 0 | H9: <-- Define Custom Card Here
A20: 4U 8x3.5 HSBP
A21: Function | B21: Sch Page | C21: P3V3, Max | D21: 5V, Max | E21: 12V, Max | F21: Comments: | H21: 5V, Max | I21: 12V, Max
A22: 3.5" SATA/SAS HDD | F22: No derating, doesn't include spinup power | H22: 6.4 | I22: 8.8
A23: 3.3V LR (from 5V) | D23: 0.243 | F23: MIC69153, up to 0.8A load current, 66% efficiency
A24: Reset Timer | C24: 0.02 | F24: ADM809
A25: FRU EEPROM | C25: 0.005 | F25: AT24C64
A26: Temp Sensor | C26: 0.01 | F26: TMP75
A27: SPI Flash | C27: 0.03 | F27: SST25LF080A
A28: HSBP Microcontroller | C28: 0.055 | F28: PSoC
A29: LED drivers (Act/Fault) | C29: 0.1 | F29: 74LVC07, Assumes 10mA per LED
A30: Misc Pullups | C30: 0.038
A31: Total Current, A | C31: =SUM(C22:C30) -> 0.258 | D31: =SUM(D22:D30) -> 0.243 | E31: =SUM(E22:E30) -> 0
A32: Total Power, W | C32: =C31*3.3 -> 0.8514 | D32: =D31*5 -> 1.215 | E32: =E31*12 -> 0 | F32: =(C32/0.85+D32/0.85+E32)/12 -> 0.2025882353
A35: 4U 8x2.5 HSBP
A36: Function | B36: Sch Page | C36: P3V3, Max | D36: 5V, Max | E36: 12V, Max | F36: Comments: | H36: 5V, Max | I36: 12V, Max
A37: 2.5" SATA/SAS HDD | F37: No derating, doesn't include spinup power | H37: 6.4 | I37: 3.2
A38: 5V Switcher (from 12V) | F38: SC417, ~90% estimated efficiency | I38: 3.076
A39: 3.3V LR (from 5V) | D39: 0.243 | F39: MIC69135, up to 0.8A load current, 66% efficiency
A40: Reset Timer | C40: 0.02 | F40: ADM809
A41: FRU EEPROM | C41: 0.005 | F41: AT24C64
A42: Temp Sensor | C42: 0.01 | F42: TMP75
A43: SPI Flash | C43: 0.03 | F43: SST25LF080A
A44: HSBP Microcontroller | C44: 0.055 | F44: PSoC
A45: LED drivers (Act/Fault) | C45: 0.1 | F45: 74LVC07, Assumes 10mA per LED
A46: Misc Pullups | C46: 0.038
A47: Total Current, A | C47: =SUM(C37:C46) -> 0.258 | D47: =SUM(D37:D46) -> 0.243 | E47: =SUM(E37:E46) -> 0
A48: Total Power, W | C48: =C47*3.3 -> 0.8514 | D48: =D47*5 -> 1.215 | E48: =E47*12 -> 0 | F48: =(C48/0.85+D48/0.85+E48)/12 -> 0.2025882353
A51: 4U 4x3.5 HSBP
A52: Function | B52: Sch Page | C52: P3V3, Max | D52: 5V, Max | E52: 12V, Max | F52: Comments: | H52: 5V, Max | I52: 12V, Max
A53: 3.5" SATA/SAS HDD | F53: No derating, doesn't include spinup power | H53: 3.2 | I53: 4.4
A54: 3.3V LR (from 5V) | D54: 0.243 | F54: MIC69153, up to 0.8A load current, 66% efficiency
A55: Reset Timer | C55: 0.02 | F55: ADM809
A56: FRU EEPROM | C56: 0.005 | F56: AT24C64
A57: Temp Sensor | C57: 0.01 | F57: TMP75
A58: SPI Flash | C58: 0.03 | F58: SST25LF080A
A59: HSBP Microcontroller | C59: 0.055 | F59: PSoC
A60: LED drivers (Act/Fault) | C60: 0.1 | F60: 74LVC07, Assumes 10mA per LED
A61: Misc Pullups | C61: 0.038
A62: Total Current, A | C62: =SUM(C53:C61) -> 0.258 | D62: =SUM(D53:D61) -> 0.243 | E62: =SUM(E53:E61) -> 0
A63: Total Power, W | C63: =C62*3.3 -> 0.8514 | D63: =D62*5 -> 1.215 | E63: =E62*12 -> 0 | F63: =(C63/0.85+D63/0.85+E63)/12 -> 0.2025882353

Sheet HardDrive
A1: Hard Drives | B1: Amps of +3.3V | C1: Amps of +5V | D1: Amps of +12V3 | E1: W
A2: Empty | E2: =C2*5+D2*12 -> 0
A3: 3.5"SAS Typical Power (15W) | C3: 0.8 | D3: 0.92 | E3: 15.04
A4: 2.5" SAS Typical Power (9W) | C4: 0.81 | D4: 0.41 | E4: 8.97
A5: Seagate SAS 10K Savvio ST9146802SS | C5: 0.79 | D5: 0.39 | E5: 8.63
A6: Seagate SAS 15K Savvio ST973451SS | C6: 0.72 | D6: 0.36 | E6: 7.92
A7: User Definable | E7: 0 | F7: <-- Define Custom Device Here
A8: 3.5" SATA Typical Power (12W) | C8: 0.5 | D8: 0.8 | E8: 12.1 | F8: <-- Define Custom Device Here
A9: 2.5" SATA Typical Power (5W) | C9: 1 | D9: 0 | E9: 5 | F9: <-- Define Custom Device Here
A10: Fujitsu SATA MHV2080BS | C10: 1 | D10: 0 | E10: 5 | F10: <-- Define Custom Device Here
A11: Intel® X25-E SATA Solid State Drive | C11: 0.52 | D11: 0 | E11: 2.6 | F11: <-- Define Custom Device Here
A12: User Definable | E12: 0 | F12: <-- Define Custom Device Here
A13: User Definable | E13: 0 | F13: <-- Define Custom Device Here

Sheet Peripherals
A1: Misc Peripherals | B1: Amps of +3.3V | C1: Amps of +5V | D1: Amps of +12V | E1: Amps of 5vsb | F1: Watts
A2: ODD Bay Devices:
A3: Empty
A4: DVDROM | C4: 0.4 | D4: 0.7 | F4: =B4*3.3+C4*5+D4*12+E4*5 -> 10.4
A5: USB floppy drive | C5: 0.5 | F5: =B5*3.3+C5*5+D5*12+E5*5 -> 2.5
A6: Tape Drive | C6: 0.77 | D6: 0.4 | F6: =B6*3.3+C6*5+D6*12+E6*5 -> 8.65
A7: User Definable | F7: =B7*3.3+C7*5+D7*12+E7*5 -> 0 | G7: <-- Define Custom Peripherals Here
A8: User Definable | F8: =B8*3.3+C8*5+D8*12+E8*5 -> 0 | G8: <-- Define Custom Peripherals Here

Sheet Macro1

Sheet Revisions
A1: Version 1.0 - 6/10/2011 | B1: <=== Linked to Summary Tab.
A3: Date | B3: Rev | C3: Notes | D3: Init
A4: 2011-06-10 | B4: 1 | C4: Initial Release | D4: DS1
